lending/lending_fUSD_20251015
["ID","MTS","AMOUNT","RATE_DAILY","PERIOD"]
[391355806,1760561583067,-185.0,0.000413,120]
[391355807,1760561583123,-10307.00591928,0.0004143,120]
[391355808,1760561583181,-1000.19815558,0.000415,120]
[391355809,1760561583245,-1000.0,0.000415,120]
[391355810,1760561583305,-885.7964498,0.000415,120]
[391355811,1760561583366,-2500.0,0.000415,120]
[391355812,1760561583432,-2500.0,0.000415,120]
[391355813,1760561583497,-2500.0,0.000415,120]
[391355814,1760561583562,-2500.0,0.000415,120]
[391355815,1760561583625,-2500.0,0.000415,120]
[391355816,1760561583684,-150.0,0.00041521,120]
[391355817,1760561583746,-488.0,0.00041542,90]
[391355818,1760561583806,-1000.0,0.0004155,120]
[391355819,1760561583866,-815.59078445,0.000416,120]
[391355820,1760561583929,-150.0,0.000417,120]
[391355821,1760561583992,-11394.9,0.00041778,117]
[391355822,1760561584052,-999.0,0.0004178,120]
[391355823,1760561584111,-152.0,0.000418,120]
[391355824,1760561584168,-10000.0,0.000418,120]
[391355825,1760561584230,-150.0,0.00041809,120]
[391355826,1760561584290,-150.0,0.00041905,120]
[391355827,1760561584347,-150.0,0.0004191,120]
[391355828,1760561584403,-1000.0,0.00041999,120]
[391355829,1760561584461,-1548.60007132,0.00042,120]
[391355830,1760561584517,-658.05748003,0.00042,120]
[391355831,1760561584575,-2009.22435713,0.00042,120]
[391355832,1760561584634,-2000.0,0.00042,120]
[391355833,1760561584699,-200.0,0.00042,120]
[391355834,1760561584758,-480.12,0.00042,120]
[391355835,1760561584818,-400.0,0.00042,120]
[391355836,1760561584877,-3060.0,0.00042,120]
[391355837,1760561584936,-8010.17794713,0.00042,120]
[391355838,1760561584998,-10000.0,0.00042,120]
[391355839,1760561585057,-7030.37223554,0.00042,120]
[391355840,1760561585113,-1811.18143705,0.00042,120]
[391355841,1760561585489,-450.0,0.00042,120]
[391355842,1760561585565,-13448.56,0.00042,120]
[391355843,1760561585626,-10135.0,0.00042,120]
[391355844,1760561585699,-1848.28100975,0.00042,120]
[391355845,1760561585758,-185.0,0.00042,120]
[391355846,1760561585824,-54899.06159285,0.00042,120]
[391355847,1760561585884,-2500.0,0.00042,120]
[391355848,1760561585946,-2500.0,0.00042,120]
[391355849,1760561586004,-2500.0,0.00042,120]
[391355850,1760561586061,-2500.0,0.00042,120]
[391355851,1760561586118,-2500.0,0.00042,120]
[391355852,1760561586175,-200.0,0.00042093,120]
[391355853,1760561586230,-27175.60670138,0.00042156,120]
[391355854,1760561586283,-500.0,0.00042219,60]
[391355855,1760561586337,-150.0,0.00042251,120]
[391355856,1760561586387,-150.0,0.00042255,120]
[391355857,1760561586440,-2012.970445,0.000423,120]
[391355858,1760561586495,-475.49624517,0.000424,120]
[391355859,1760561586554,-999.0,0.00042465,120]
[391355860,1760561586612,-3100.0,0.0004249,120]
[391355861,1760561586667,-1672.90464208,0.000425,60]
[391355862,1760561586720,-1035.0,0.000425,120]
[391355863,1760561586774,-21343.66160309,0.000425,120]
[391355864,1760561586832,-50000.0,0.000425,120]
[391355865,1760561586887,-1284.37572886,0.000425,120]
[391355866,1760561586944,-1369.36159808,0.000425,120]
[391355867,1760561586999,-2500.0,0.000425,120]
[391355868,1760561587053,-2500.0,0.000425,120]
[391355869,1760561587105,-2500.0,0.000425,120]
[391355870,1760561587161,-833172.9557693,0.000426,120]
[391355871,1760561587219,-351332.43157183,0.000426,120]
[391355872,1760561587278,-445660.70765909,0.000426,120]
[391355873,1760561587346,-428.07747239,0.000426,120]
[391355874,1760561587406,-190995.7681564,0.000426,120]
[391355875,1760561587466,-43652.15890542,0.000426,120]
[391355876,1760561587523,-152.0,0.000427,120]
[391355877,1760561587581,-185.0,0.000427,120]
[391355878,1760561587636,-150.0,0.0004271,120]
[391355879,1760561587690,-190.69,0.0004274,91]
[391355880,1760561587745,-1444.0,0.00042795,90]
[391355881,1760561587802,-176.02,0.000428,120]
[391355882,1760561587863,-851.86844846,0.000428,120]
[391355883,1760561587922,-20000.0,0.000428,120]
[391355884,1760561587980,-488.0,0.00042826,90]
[391355885,1760561588040,-150.0,0.0004287,120]
[391355886,1760561588098,-13570.4586084,0.000429,120]
[391355887,1760561588156,-2889.0,0.00042978,72]
[391355888,1760561588211,-1000.0,0.00042999,120]
[391355889,1760561588265,-151.20387523,0.00042999,120]
[391355890,1760561588318,-172.77865138,0.00043,120]
[391355891,1760561588368,-2000.0,0.00043,120]
[391355892,1760561588418,-10000.0,0.00043,120]
[391355893,1760561588469,-200.0,0.00043,120]
[391355894,1760561588520,-3859.75460525,0.00043,120]
[391355895,1760561588574,-400.0,0.00043,120]
[391355896,1760561588625,-618088.12102789,0.00043,120]
[391355897,1760561597132,-467.99237648,0.0004275,120]
[391355898,1760561597189,-10720.6205601,0.00042936,120]
[391355899,1760561597243,-1985.10444183,0.00042936,120]
[391355900,1760561597293,-3986826.28262159,0.00043,120]
[391355901,1760561602162,-500.0,0.00029082,120]
[391355902,1760561604515,-1943.69175781,0.00040281,120]
[391355903,1760561604581,-775.08332893,0.0004275,120]
[391355904,1760561604639,-13863.55,0.0004275,120]
[391355905,1760561604692,-1145.59806965,0.0004275,120]
[391355906,1760561604746,-1817.23,0.0004275,120]
[391355907,1760561604804,-3979954.84684361,0.00043,120]
[391355908,1760561622169,-299.93288254,0.00037,120]
[391355909,1760561622241,-299.93288254,0.0004,120]
[391355910,1760561622306,-1264.75587111,0.0004275,120]
[391355911,1760561622365,-3998135.37836381,0.00043,120]
[391355912,1760561628234,-14071.57,0.0004275,120]
[391355913,1760561628294,-152.79686108,0.0004275,120]
[391355914,1760561628352,-788.71656545,0.0004275,120]
[391355915,1760561628408,-1435151.15224507,0.00043,120]
[391355916,1760561628463,-1857.87109372,0.00043,120]
[391355917,1760561628519,-75000.0,0.00043,120]
[391355918,1760561628575,-10000.0,0.00043,120]
[391355919,1760561628632,-3167.17989568,0.00043,120]
[391355920,1760561628692,-15008.24,0.00043,120]
[391355921,1760561628751,-503519.5371141,0.00043,120]
[391355922,1760561628809,-1518.0,0.00043,120]
[391355923,1760561628866,-10568.96011429,0.00043,120]
[391355924,1760561628921,-1073.47378954,0.00043,120]
[391355925,1760561628980,-21822.0,0.00043,120]
[391355926,1760561629036,-2300.0,0.00043,120]
[391355927,1760561629094,-474.16447714,0.00043,120]
[391355928,1760561629152,-2691.0,0.00043,120]
[391355929,1760561629209,-2500.0,0.00043,120]
[391355930,1760561629266,-2500.0,0.00043,120]
[391355931,1760561629322,-2500.0,0.00043,120]
[391355932,1760561629379,-203.02,0.00043014,120]
[391355933,1760561629434,-999.0,0.0004315,120]
[391355934,1760561629488,-150.0,0.00043162,120]
[391355935,1760561629544,-1066.0,0.0004322,120]
[391355936,1760561629601,-15007.29619527,0.000433,120]
[391355937,1760561629661,-538.47786625,0.00043315,60]
[391355938,1760561629718,-185.0,0.000434,120]
[391355939,1760561629780,-576577.58067693,0.000434,120]
[391355940,1760561629837,-488.0,0.0004343,90]
[391355941,1760561629894,-10220.77231858,0.00043452,120]
[391355942,1760561629950,-2151.832023,0.00043455,120]
[391355943,1760561630006,-1588.92578208,0.00043457,120]
[391355944,1760561630061,-13039.02099653,0.00043461,120]
[391355945,1760561630121,-150.0,0.00043464,120]
[391355946,1760561630175,-431.26175318,0.00043471,120]
[391355947,1760561630228,-10220.77231858,0.00043472,120]
[391355948,1760561630280,-32644.61921603,0.00043474,120]
[391355949,1760561630333,-2950.5282144,0.00043475,120]
[391355950,1760561630379,-150.0,0.00043475,120]
[391355951,1760561630427,-2950.5282144,0.00043482,120]
[391355952,1760561630478,-431.26175318,0.00043484,120]
[391355953,1760561630528,-268.92436862,0.0004349,120]
[391355954,1760561630584,-3053.27383643,0.00043492,120]
[391355955,1760561630633,-57945.67727529,0.00043492,120]
[391355956,1760561630685,-855.65720756,0.00043494,120]
[391355957,1760561630732,-1588.92578208,0.00043495,120]
[391355958,1760561630781,-431.26175318,0.00043496,120]
[391355959,1760561630831,-130000.0,0.000435,120]
[391355960,1760561630885,-117911.26238301,0.000435,120]
[391355961,1760561630937,-2500.0,0.000435,120]
[391355962,1760561630989,-248.4,0.000435,120]
[391355963,1760561631043,-2500.0,0.000435,120]
[391355964,1760561631095,-1324.01055741,0.000435,120]
[391355965,1760561631149,-432.83053921,0.000435,120]
[391355966,1760561631199,-268.92436862,0.00043506,120]
[391355967,1760561631247,-866.1235401,0.00043509,120]
[391355968,1760561631296,-2737.15859928,0.0004351,120]
[391355969,1760561631348,-10220.77231858,0.00043512,120]
[391355970,1760561631398,-57945.67727529,0.00043512,120]
[391355971,1760561631448,-2151.832023,0.00043514,120]
[391355972,1760561631502,-159.81315634,0.00043515,120]
[391355973,1760561631560,-855.65720756,0.00043517,120]
[391355974,1760561631616,-11405.23344839,0.0004352,120]
[391355975,1760561631672,-1725.90032899,0.00043526,120]
[391355976,1760561631725,-11405.23344839,0.00043528,120]
[391355977,1760561631779,-3263.327522,0.00043532,120]
[391355978,1760561631833,-10220.77231858,0.00043532,120]
[391355979,1760561631890,-470.47990445,0.00043533,120]
[391355980,1760561631947,-3263.327522,0.00043535,120]
[391355981,1760561632002,-2950.5282144,0.00043537,120]
[391355982,1760561632060,-1152.53300855,0.00043537,120]
[391355983,1760561632116,-431.26175318,0.00043545,120]
[391355984,1760561632179,-13039.02099653,0.00043548,120]
[391355985,1760561632239,-32644.61921603,0.00043549,120]
[391355986,1760561632298,-1588.92578208,0.00043552,120]
[391355987,1760561632355,-2950.5282144,0.00043553,120]
[391355988,1760561632412,-159.81315634,0.00043555,120]
[391355989,1760561632472,-1597.88378663,0.00043556,120]
[391355990,1760561632543,-66868.0,0.0004356,120]
[391355991,1760561632609,-13034.5,0.0004356,120]
[391355992,1760561632669,-866.1235401,0.0004356,120]
[391355993,1760561632726,-2950.5282144,0.00043561,120]
[391355994,1760561632785,-1152.53300855,0.00043561,120]
[391355995,1760561632841,-57945.67727529,0.00043562,120]
[391355996,1760561632896,-1588.92578208,0.00043563,120]
[391355997,1760561632952,-1324.01055741,0.00043563,120]
[391355998,1760561633517,-10220.77231858,0.00043564,120]
[391355999,1760561633579,-1725.90032899,0.00043565,120]
[391356000,1760561633641,-1597.88378663,0.0004357,120]
[391356001,1760561633705,-159.81315634,0.00043571,120]
[391356002,1760561633769,-3053.27383643,0.00043571,120]
[391356003,1760561633830,-13039.02099653,0.00043576,120]
[391356004,1760561633891,-11405.23344839,0.00043577,120]
[391356005,1760561633951,-1725.90032899,0.00043581,120]
[391356006,1760561634012,-1588.92578208,0.00043582,120]
[391356007,1760561634074,-32644.61921603,0.00043584,120]
[391356008,1760561634140,-2151.832023,0.00043587,120]
[391356009,1760561634203,-855.65720756,0.00043589,120]
[391356010,1760561634262,-268.92436862,0.00043591,120]
[391356011,1760561634322,-57945.67727529,0.00043591,120]
[391356012,1760561634378,-11405.23344839,0.00043594,120]
[391356013,1760561634435,-1152.53300855,0.00043597,120]
[391356014,1760561634488,-431984.37079479,0.000436,120]
[391356015,1760561650440,-737.45,0.00038,60]
[391356016,1760561650512,-13749.15,0.0004275,120]
[391356017,1760561650571,-539997.77312431,0.00042985,88]
[391356018,1760561650628,-68015.62920521,0.000436,120]
[391356019,1760561650685,-1935.21140342,0.000436,120]
[391356020,1760561650744,-432.83053921,0.00043601,120]
[391356021,1760561650803,-32644.61921603,0.00043602,120]
[391356022,1760561650859,-2151.832023,0.00043602,120]
[391356023,1760561650916,-57945.67727529,0.00043606,120]
[391356024,1760561650973,-432.83053921,0.00043609,120]
[391356025,1760561651033,-3263.327522,0.00043613,120]
[391356026,1760561651090,-1324.01055741,0.00043614,120]
[391356027,1760561651150,-13039.02099653,0.00043618,120]
[391356028,1760561651208,-470.47990445,0.0004362,120]
[391356029,1760561651682,-11405.23344839,0.00043621,120]
[391356030,1760561651742,-431.26175318,0.00043623,120]
[391356031,1760561651801,-57945.67727529,0.00043627,120]
[391356032,1760561651858,-3263.327522,0.00043628,120]
[391356033,1760561651914,-13039.02099653,0.00043628,120]
[391356034,1760561651969,-3053.27383643,0.00043631,120]
[391356035,1760561652025,-1725.90032899,0.00043642,120]
[391356036,1760561652084,-3053.27383643,0.00043642,120]
[391356037,1760561652142,-57945.67727529,0.00043642,120]
[391356038,1760561652208,-470.47990445,0.00043643,120]
[391356039,1760561652273,-2737.15859928,0.00043647,120]
[391356040,1760561652335,-2151.832023,0.00043649,120]
[391356041,1760561652393,-470.47990445,0.00043654,120]
[391356042,1760561652448,-2151.832023,0.00043654,120]
[391356043,1760561652505,-866.1235401,0.00043656,120]
[391356044,1760561652563,-3263.327522,0.00043659,120]
[391356045,1760561652618,-1725.90032899,0.00043662,120]
[391356046,1760561652669,-431.26175318,0.00043663,120]
[391356047,1760561652718,-1597.88378663,0.00043663,120]
[391356048,1760561652770,-268.92436862,0.00043664,120]
[391356049,1760561652820,-11405.23344839,0.00043665,120]
[391356050,1760561652871,-866.1235401,0.00043665,120]
[391356051,1760561652926,-1725.90032899,0.00043667,120]
[391356052,1760561652983,-3053.27383643,0.0004367,120]
[391356053,1760561653041,-13039.02099653,0.00043671,120]
[391356054,1760561653098,-13039.02099653,0.00043672,120]
[391356055,1760561653161,-470.47990445,0.00043673,120]
[391356056,1760561653213,-1597.88378663,0.00043674,120]
[391356057,1760561653265,-432.83053921,0.00043677,120]
[391356058,1760561653319,-10220.77231858,0.00043677,120]
[391356059,1760561653370,-10220.77231858,0.00043678,120]
[391356060,1760561653422,-1324.01055741,0.00043678,120]
[391356061,1760561653476,-866.1235401,0.00043681,120]
[391356062,1760561653534,-855.65720756,0.00043687,120]
[391356063,1760561653596,-1152.53300855,0.00043689,120]
[391356064,1760561653658,-2737.15859928,0.00043689,120]
[391356065,1760561653730,-1597.88378663,0.00043692,120]
[391356066,1760561653794,-1597.88378663,0.00043697,120]
[391356067,1760561653854,-1152.53300855,0.00043698,120]
[391356068,1760561653913,-152.0,0.000437,120]
[391356069,1760561653974,-266.67443632,0.000437,120]
[391356070,1760561654041,-32644.61921603,0.00043702,120]
[391356071,1760561654103,-432.83053921,0.00043703,120]
[391356072,1760561654161,-1597.88378663,0.00043705,120]
[391356073,1760561654220,-2151.832023,0.00043712,120]
[391356074,1760561654279,-268.92436862,0.00043712,120]
[391356075,1760561654337,-3263.327522,0.00043712,120]
[391356076,1760561654393,-1324.01055741,0.00043714,120]
[391356077,1760561654450,-268.92436862,0.00043714,120]
[391356078,1760561654506,-159.81315634,0.00043718,120]
[391356079,1760561654564,-470.47990445,0.00043723,120]
[391356080,1760561654622,-2737.15859928,0.00043727,120]
[391356081,1760561654678,-32644.61921603,0.00043728,120]
[391356082,1760561654733,-2950.5282144,0.00043728,120]
[391356083,1760561654788,-866.1235401,0.00043729,120]
[391356084,1760561654842,-159.81315634,0.00043732,120]
[391356085,1760561654903,-268.92436862,0.00043733,120]
[391356086,1760561654964,-1152.53300855,0.00043735,120]
[391356087,1760561655029,-432.83053921,0.00043735,120]
[391356088,1760561655090,-2737.15859928,0.00043737,120]
[391356089,1760561655152,-1324.01055741,0.00043739,120]
[391356090,1760561655212,-855.65720756,0.0004374,120]
[391356091,1760561655273,-2950.5282144,0.00043747,120]
[391356092,1760561655329,-431.26175318,0.00043747,120]
[391356093,1760561655386,-855.65720756,0.00043749,120]
[391356094,1760561655438,-2737.15859928,0.00043749,120]
[391356095,1760561655493,-3263.327522,0.00043749,120]
[391356096,1760561655555,-1588.92578208,0.00043751,120]
[391356097,1760561655615,-866.1235401,0.00043752,120]
[391356098,1760561655673,-11405.23344839,0.00043756,120]
[391356099,1760561655733,-1324.01055741,0.00043766,120]
[391356100,1760561655797,-1725.90032899,0.00043768,120]
[391356101,1760561655867,-432.83053921,0.00043768,120]
[391356102,1760561655927,-3053.27383643,0.00043775,120]
[391356103,1760561655988,-159.81315634,0.00043777,120]
[391356104,1760561656051,-1152.53300855,0.00043781,120]
[391356105,1760561656110,-1588.92578208,0.00043783,120]
[391356106,1760561656171,-855.65720756,0.00043783,120]
[391356107,1760561656232,-2869.32224307,0.00043789,74]
[391356108,1760561656293,-159.81315634,0.00043791,120]
[391356109,1760561656350,-39677.0,0.00043791,120]
[391356110,1760561656408,-470.47990445,0.00043791,120]
[391356111,1760561656463,-3053.27383643,0.00043793,120]
[391356112,1760561656522,-32644.61921603,0.00043795,120]
[391356113,1760561656581,-2737.15859928,0.00043798,120]
[391356114,1760561656638,-1027.0,0.000438,60]
[391356115,1760561656695,-100000.0,0.000438,120]
[391356116,1760561656753,-800.07074856,0.000438,120]
[391356117,1760561656812,-338.90326623,0.000438,120]
[391356118,1760561656871,-20000.0,0.000438,120]
[391356119,1760561656927,-352.18,0.0004383,60]
[391356120,1760561656986,-1000.0,0.0004383,60]
[391356121,1760561657047,-1000.0,0.00043835,120]
[391356122,1760561657103,-1000.0,0.00043835,120]
[391356123,1760561657160,-999.0,0.00043835,120]
[391356124,1760561657216,-5000.0,0.000439,120]
[391356125,1760561657271,-30000.0,0.00043986,120]
[391356126,1760561657324,-1167.96749661,0.00043986,120]
[391356127,1760561657377,-16646.70103624,0.00043987,120]
[391356128,1760561657431,-1000.0,0.00043999,120]
[391356129,1760561657485,-21000.0,0.00044,120]
[391356130,1760561657542,-17158.54620379,0.00044,120]
[391356131,1760561657601,-2036.04047687,0.00044,120]
[391356132,1760561658152,-200.0,0.00044,120]
[391356133,1760561658210,-3100.0,0.00044,120]
[391356134,1760561658267,-400.0,0.00044,120]
[391356135,1760561658321,-2000.0,0.00044,120]
[391356136,1760561658374,-100051.54747652,0.00044,120]
[391356137,1760561658428,-4932.01192553,0.00044,120]
[391356138,1760561658483,-25000.0,0.00044,120]
[391356139,1760561658535,-807354.71419195,0.00044,120]
[391356140,1760561658588,-293670.46120838,0.00044,120]
[391356141,1760561658641,-8054.334,0.00044,120]
[391356142,1760561658695,-407.83269265,0.00044,120]
[391356143,1760561658752,-10000.0,0.00044,120]
[391356144,1760561658807,-2000.0,0.00044,120]
[391356145,1760561658866,-11426.02429009,0.00044,120]
[391356146,1760561658920,-185.0,0.00044,120]
[391356147,1760561658971,-2500.0,0.00044,120]
[391356148,1760561659025,-2500.0,0.00044,120]
[391356149,1760561659083,-150.0,0.00044111,120]
[391356150,1760561659138,-150.0,0.00044268,120]
[391356151,1760561659195,-150.0,0.00044277,120]
[391356152,1760561659245,-150.0,0.00044394,120]
[391356153,1760561659296,-145317.41150044,0.000444,120]
[391356154,1760561659345,-488.0,0.00044412,90]
[391356155,1760561659396,-150.0,0.00044418,120]
[391356156,1760561659445,-150.0,0.00044455,120]
[391356157,1760561659493,-33825.01066339,0.000445,120]
[391356158,1760561659546,-2500.0,0.000445,120]
[391356159,1760561659602,-2500.0,0.000445,120]
[391356160,1760561659660,-999.0,0.0004452,120]
[391356161,1760561659713,-150.0,0.00044561,120]
[391356162,1760561659765,-150.0,0.0004459,120]
[391356163,1760561659817,-20469.42964936,0.000446,120]
[391356164,1760561659869,-1444.0,0.00044603,120]
[391356165,1760561659924,-150.0,0.00044662,120]
[391356166,1760561659982,-152.0,0.000447,120]
[391356167,1760561660036,-185.0,0.000447,120]
[391356168,1760561660090,-20000.0,0.000448,120]
[391356169,1760561660140,-93738.44192072,0.0004489,120]
[391356170,1760561660195,-5000.0,0.000449,120]
[391356171,1760561660244,-150.0,0.00044936,120]
[391356172,1760561660292,-600.0,0.0004499,120]
[391356173,1760561660339,-17500.0,0.0004499,120]
[391356174,1760561660386,-43600.0,0.0004499,120]
[391356175,1760561660433,-150.0,0.0004499,120]
[391356176,1760561660479,-150.0,0.0004499,120]
[391356177,1760561660528,-20000.0,0.0004499,120]
[391356178,1760561660579,-1000.0,0.00044999,120]
[391356179,1760561660644,-311.25910766,0.00045,60]
[391356180,1760561660708,-156.1,0.00045,85]
[391356181,1760561660774,-600.0,0.00045,120]
[391356182,1760561660830,-2320.3854827,0.00045,120]
[391356183,1760561660887,-531.88869997,0.00045,120]
[391356184,1760561660943,-1190.58780908,0.00045,120]
[391356185,1760561661010,-113975.19804694,0.00045,120]
[391356186,1760561661075,-788861.65994032,0.00045,120]
[391356187,1760561670144,-14202.14,0.0004335,120]
[391356188,1760561670207,-1173147.9613201,0.00043985,88]
[391356189,1760561670263,-908947.07908667,0.00043985,88]
[391356190,1760561670318,-539997.77312431,0.00044985,88]
[391356191,1760561670370,-150.0,0.0004499,120]
[391356192,1760561670423,-211138.34005968,0.00045,120]
[391356193,1760561670478,-200.0,0.00045,120]
[391356194,1760561670536,-500.0,0.00045,120]
[391356195,1760561670595,-18048.39502351,0.00045,120]
[391356196,1760561670652,-8183.29770244,0.00045,120]
[391356197,1760561670710,-19751.6289147,0.00045,120]
[391356198,1760561670769,-43543.29,0.00045,120]
[391356199,1760561670828,-18356.3650411,0.00045,120]
[391356200,1760561670885,-20000.0,0.00045,120]
[391356201,1760561670943,-13168.79725193,0.00045,120]
[391356202,1760561670998,-107793.0,0.00045,120]
[391356203,1760561671057,-20000.0,0.00045,120]
[391356204,1760561671115,-25371.37,0.00045,120]
[391356205,1760561671172,-25000.0,0.00045,120]
[391356206,1760561671233,-150.0,0.00045,90]
[391356207,1760561671290,-11583.60386203,0.00045,120]
[391356208,1760561671346,-221.0,0.00045,120]
[391356209,1760561671403,-5000.0,0.00045,120]
[391356210,1760561671461,-1500.0,0.00045,120]
[391356211,1760561671521,-1335.21347802,0.00045,120]
[391356212,1760561671580,-2012.6175383,0.00045,120]
[391356213,1760561671638,-7579.35,0.00045,120]
[391356214,1760561671695,-29920.95859284,0.00045,120]
[391356215,1760561671750,-241274.5580046,0.00045,120]
[391356216,1760561671807,-22831.68,0.00045,120]
[391356217,1760561671865,-2000.0,0.00045,90]
[391356218,1760561671924,-2000.0,0.00045,120]
[391356219,1760561671983,-27267.23479946,0.00045,120]
[391356220,1760561672043,-400.0,0.00045,120]
[391356221,1760561672101,-570.95,0.00045,120]
[391356222,1760561672162,-20000.0,0.00045,120]
[391356223,1760561672217,-456853.39620031,0.00045,120]
[391356224,1760561680473,-150.0,0.0004335,120]
[391356225,1760561680531,-152.0,0.0004356,120]
[391356226,1760561680591,-2812649.8986799,0.00043985,88]
[391356227,1760561680649,-832350.56247556,0.00043985,88]
[391356228,1760561680709,-194454.31412429,0.00045,120]
[391356229,1760561680770,-21822.0,0.00045,120]
[391356230,1760561680830,-200.0,0.00045,120]
[391356231,1760561680890,-2691.0,0.00045,120]
[391356232,1760561680947,-8115.92914259,0.00045,120]
[391356233,1760561681005,-1999.999999,0.00045,120]
[391356234,1760561681064,-2500.0,0.00045,120]
[391356235,1760561681126,-1000000.0,0.00045025,120]
[391356236,1760561681187,-1000000.0,0.0004505,120]
[391356237,1760561681246,-1000000.0,0.00045075,120]
[391356238,1760561681303,-20000.0,0.000451,120]
[391356239,1760561681360,-20000.0,0.000452,120]
[391356240,1760561681422,-999.0,0.00045205,120]
[391356241,1760561681486,-4112.33,0.00045233,120]
[391356242,1760561681550,-200.0,0.00045243,120]
[391356243,1760561681614,-150.0,0.00045246,120]
[391356244,1760561681673,-3776.96094129,0.000453,120]
[391356245,1760561681732,-488.0,0.00045319,90]
[391356246,1760561681792,-3012.55,0.000454,120]
[391356247,1760561681853,-185.0,0.000454,120]
[391356248,1760561681913,-200.0,0.00045406,120]
[391356249,1760561682406,-389.45090218,0.00045406,120]
[391356250,1760561682466,-1000000.0,0.000455,120]
[391356251,1760561682525,-998.6318441,0.000455,120]
[391356252,1760561682584,-10054.47934681,0.000455,120]
[391356253,1760561682641,-347781.34107731,0.000455,120]
[391356254,1760561682699,-2500.0,0.000455,120]
[391356255,1760561682761,-150.0,0.00045552,120]
[391356256,1760561682822,-3098.45,0.000456,120]
[391356257,1760561682882,-150.0,0.00045632,120]
[391356258,1760561682939,-63011.77401102,0.000457,120]
[391356259,1760561683003,-152.0,0.000457,120]
[391356260,1760561683062,-20000.0,0.000458,120]
[391356261,1760561683126,-55567.61331932,0.0004588,120]
[391356262,1760561683191,-1230.795,0.00045882,75]
[391356263,1760561683257,-9599.33921334,0.0004589,120]
[391356264,1760561683319,-999.0,0.0004589,120]
[391356265,1760561683378,-5000.0,0.000459,120]
[391356266,1760561683434,-30000.0,0.00045986,120]
[391356267,1760561683494,-488.0,0.00045998,90]
[391356268,1760561683558,-1000.0,0.00045999,120]
[391356269,1760561683620,-1000.0,0.00045999,120]
[391356270,1760561683684,-2167.62824978,0.00046,120]
[391356271,1760561683751,-400.0,0.00046,120]
[391356272,1760561683815,-1000.0,0.00046,120]
[391356273,1760561683878,-25000.0,0.00046,120]
[391356274,1760561683942,-8000.0,0.00046,120]
[391356275,1760561684006,-244642.59013339,0.00046,120]
[391356276,1760561684069,-10131.5263138,0.00046,120]
[391356277,1760561684133,-815.39416205,0.00046,120]
[391356278,1760561684195,-6958.58279699,0.00046,120]
[391356279,1760561684258,-2302.31857329,0.00046,120]
[391356280,1760561684319,-16002.92544586,0.00046,120]
[391356281,1760561684377,-6100.0,0.00046,120]
[391356282,1760561684436,-200.0,0.00046,120]
[391356283,1760561684497,-2500.0,0.00046,120]
[391356284,1760561684558,-185.0,0.000461,120]
[391356285,1760561684618,-373.16856797,0.0004613,120]
[391356286,1760561684679,-1776.93098188,0.0004618,90]
[391356287,1760561684741,-20538.27103841,0.00046308,120]
[391356288,1760561684804,-141329.26446561,0.000464,120]
[391356289,1760561684868,-164609.84386236,0.000464,120]
[391356290,1760561684933,-25714.61711845,0.000464,120]
[391356291,1760561684996,-869.19726819,0.000464,120]
[391356292,1760561685058,-897.49,0.0004649,120]
[391356293,1760561685120,-1000000.0,0.000465,120]
[391356294,1760561685183,-2500.0,0.000465,120]
[391356295,1760561685249,-12429.6,0.00046556,117]
[391356296,1760561685309,-1000.0,0.00046574,120]
[391356297,1760561685371,-3979.65684165,0.00046575,60]
[391356298,1760561685433,-168.20308955,0.00046575,120]
[391356299,1760561685493,-600.0,0.00046575,60]
[391356300,1760561685553,-600.0,0.00046575,60]
[391356301,1760561685614,-600.0,0.00046575,60]
[391356302,1760561685675,-600.0,0.00046575,60]
[391356303,1760561685737,-600.0,0.00046575,60]
[391356304,1760561685797,-600.0,0.00046575,60]
[391356305,1760561685858,-600.0,0.00046575,60]